Cogmind - Beta 15 @@@ ROGUE MODE // 2025.08.25 @ 19:34:43 Player: Mogwok Wargfriend Result: Destroyed by G-67 Veteran with Plasma Rifle Performance ------------- Evolutions (7) 3500 Regions Visited (13) 2600 Robots Destroyed (242) 1210 Value Destroyed (5716) 5716 Prototype IDs (18) 360 Alien Tech Used (0) 0 Bonus (1446) 1446 TOTAL SCORE: 14832 Bonus ------- High Alert Combat Kills 72 Follower Combat Kills 74 Entered DSFs 500 Registered with UFD 300 Met Optimus in HQ 500 Cogmind --------- Core Integrity 0/1300 Matter 300/300 Energy 87/100 System Corruption 8% Temperature Cool (12) Movement Core (50) Location -3/Research Parts ------- > --- POWER (1) -------- (None) > --- PROPULSION (7) --- Improved Gyrokinetic Inverter > --- UTILITY (10) ----- Experimental Optical Array System Shield > --- WEAPON (3) ------- (None) > --- INVENTORY (5) ---- Graphene Brace Enhanced Coil Gun Phasing Sabre Peak State ------------ > --- POWER ------------ Particle Reactor > --- PROPULSION ------- Linear Gravjet Improved Gyrokinetic Inverter Improved Gyrokinetic Inverter Antigrav Array Antigrav Array > --- UTILITY ---------- Medium Storage Unit Experimental Optical Array Advanced Sensor Array Advanced Signal Interpreter Melee Analysis Suite Improved Melee Analysis Suite Graphene Brace Graphene Brace Improved Hacking Suite System Shield > --- WEAPON ----------- Phasing Sabre Lance Lance > --- INVENTORY -------- Antimatter Reactor Particle Reactor Armored Medium Treads Myomer Leg Compact Wheel Improved Gyrokinetic Inverter Cooled Cesium-ion Thruster Energy Well Mapping Drone Bay Enhanced Coil Gun [Rating: 132] Favorites ----------- Power Cooled Ion Engine Engine Cooled Ion Engine Power Core Light Fission Core Reactor Particle Reactor Propulsion Wheel Treads Light Treads Leg Carbon-fiber Leg Wheel Wheel Hover Unit Improved Gyrokinetic Inverter Flight Unit Cooled Cesium-ion Thruster Utility System Shield Device Sensor Array Storage Large Storage Unit Processor Advanced Signal Interpreter Hackware System Shield Protection Hardened Light Armor Plating Weapon Improved Assault Rifle Energy Gun Medium Laser Energy Cannon Advanced Beam Cannon Ballistic Gun Improved Assault Rifle Ballistic Cannon Gauss Cannon Launcher Mini Grenade Launcher Impact Weapon Impact Mace Slashing Weapon Phasing Sabre Piercing Weapon Lance Special Melee Weapon Datajack Build | -11 -10 -9 -9 -9 -9 -6 -6 -6 -6 -5 -5 -4 -3 ------- Run | Yrd Mat Mat Sto Rec Scr Fac Was Fac DSF Fac Ext Fac Res Slots Evolved 14 | . . 2 . . . 6 . . . 2 . 2 2 Power . | . . . . . . . . . . . . . . Propulsion 5 | . . . . . . 2 . . . 1 . 2 . Utility 8 | . . 1 . . . 4 . . . 1 . . 2 Weapon 1 | . . 1 . . . . . . . . . . . Parts Attached 174 | 7 11 24 16 . 2 55 1 3 3 8 9 19 16 Power 19 | 1 2 2 2 . . 3 . 1 . 2 2 1 3 Engine 12 | 1 2 2 2 . . 2 . . . 1 2 . . Core 2 | . . . . . . 1 . . . 1 . . . Reactor 5 | . . . . . . . . 1 . . . 1 3 Propulsion 61 | 2 4 8 5 . . 21 . . . 4 3 8 6 Treads 14 | 1 1 4 3 . . 4 . . . . . 1 . Leg 5 | . . . . . . 4 . . . . . 1 . Wheel 23 | 1 3 4 2 . . 9 . . . . 3 1 . Hover 12 | . . . . . . . . . . 2 . 5 5 Flight 7 | . . . . . . 4 . . . 2 . . 1 Utility 54 | 2 4 3 3 . 1 17 1 1 2 2 3 10 5 Device 32 | 1 3 1 1 . . 11 . 1 . . 2 8 4 Storage 9 | 1 1 1 1 . 1 2 1 . . . 1 . . Processor 8 | . . . . . . 3 . . 2 1 . 2 . Hackware 4 | . . 1 . . . 1 . . . 1 . . 1 Protection 1 | . . . 1 . . . . . . . . . . Artifact . | . . . . . . . . . . . . . . Weapon 40 | 2 1 11 6 . 1 14 . 1 1 . 1 . 2 Energy Gun 10 | 1 . 3 2 . . 4 . . . . . . . Energy Cannon 2 | . . . 1 . . 1 . . . . . . . Ballistic Gun 19 | 1 1 6 2 . 1 6 . 1 1 . . . . Ballistic Cannon 3 | . . 1 . . . 2 . . . . . . . Launcher 1 | . . 1 . . . . . . . . . . . Special Weapon . | . . . . . . . . . . . . . . Impact Weapon 1 | . . . . . . 1 . . . . . . . Slashing Weapon 1 | . . . . . . . . . . . 1 . . Piercing Weapon 2 | . . . . . . . . . . . . . 2 Special Melee Weapon 1 | . . . 1 . . . . . . . . . . Unidentified Prototypes 13 | . . 2 4 . . 3 . 1 1 . . 2 . Corrupted Parts 1 | . . . . . . . . . . . . . 1 System Corruption 4 | . . . . . . . . . . . . . 4 Parts Lost 67 | . 3 3 . . . 28 . . 2 . 8 3 20 Power 7 | . 1 . . . . 2 . . 1 . 1 . 2 Propulsion 26 | . 1 2 . . . 9 . . . . 4 2 8 Utility 20 | . . . . . . 7 . . 1 . 3 1 8 Weapon 14 | . 1 1 . . . 10 . . . . . . 2 Highest Loss Streak 15 | . 2 1 . . . 10 . . 2 . 4 1 15 To Critical Strikes 1 | . . . . . . 1 . . . . . . . Average Backups 13 | 3 11 14 14 15 18 14 5 5 5 4 5 9 7 Power 1 | . 1 1 1 1 1 1 1 1 1 . . 1 1 Propulsion 3 | 2 2 3 3 4 5 3 1 1 1 . . 2 4 Utility 3 | . 3 4 3 4 4 4 3 3 3 3 3 4 1 Weapon 4 | . 3 5 5 6 7 4 . . . . 1 1 . Tool/Special . | . . . . . . . . . . . . . . Unused Backups 34 | . 7 8 2 . 2 11 1 1 . . . . 2 Power 7 | . 1 1 1 . . 1 . 1 . . . . 2 Propulsion 12 | . 5 . . . 2 5 . . . . . . . Utility 6 | . 1 2 . . . 2 1 . . . . . . Weapon 8 | . . 5 . . . 3 . . . . . . . Tool/Special 1 | . . . 1 . . . . . . . . . . Average Slot Usage (%) 93 | . 97 98 99 100 100 92 86 86 81 79 71 80 81 Engine 7 | . 13 11 11 11 11 5 . . . . . 3 . Treads 4 | . 13 11 8 . . 3 . . . . . 1 . Leg 1 | . . . . . . 6 . . . . . . . Wheel 11 | . 13 10 13 22 22 10 . . . . 1 6 . Hover 2 | . . . . . . . . . . 6 . 14 21 Flight 2 | . . . . . . 1 26 26 25 19 19 1 . Device 9 | . 13 11 5 . . 14 24 26 26 21 8 12 12 Storage 8 | . 14 11 11 11 11 5 1 . . . 3 5 2 Processor 5 | . . . . . . 10 6 6 6 12 17 16 18 Hackware 8 | . . 10 11 11 11 9 6 6 4 4 5 5 6 Protection 3 | . . . 5 11 11 1 . . . . . . . Energy Gun 4 | . 13 10 4 . . 3 . . . . . . . Energy Cannon 3 | . . . 5 11 11 . . . . . . . . Ballistic Gun 13 | . 13 21 21 22 22 9 6 6 6 . . . 1 Peak Build Rating 132 | 7 10 21 27 24 28 66 66 69 74 70 69 90 132 Average Rating 40 | 5 8 19 22 24 26 50 65 66 66 66 56 79 119 On Entrance 40 | . 7 10 21 24 24 28 66 66 67 61 65 45 85 Naked Turns . | . . . . . . . . . . . . . . Heaviest Build 73 | 15 30 40 44 43 65 73 24 21 21 22 25 38 44 Greatest Support 88 | 16 16 20 10 22 22 42 36 24 36 18 48 58 88 Greatest Overweight (x) 9 | . 9 3 4 4 2 8 . . . 1 1 . 1 Average Overweight (x) 1 | . 1 2 3 1 1 1 . . . . . . . Largest Inventory Capacity 20 | 8 15 15 15 15 20 20 5 5 5 5 10 10 10 Average Capacity 14 | 7 11 15 15 15 18 19 5 5 5 5 5 10 8 Most Carried 20 | 8 15 15 15 15 20 20 5 5 5 5 6 10 10 Average Carried 13 | 3 11 14 14 15 18 15 4 5 5 4 5 9 8 Final Capacity 20 | 8 15 15 15 15 20 5 5 5 5 5 10 10 5 Final Carried 20 | 8 15 15 15 15 20 5 5 5 5 5 5 10 3 Class Distribution -------------------- 19% | Skirmisher 16% | Commander-Tank 13% | Mutant 9% | Scout 8% | Tank 6% | Scavenger-Skirmisher 4% | Hacker-Skirmisher 3% | Gladiator 3% | Commander-Skirmisher 3% | Scavenger-Gladiator Dominant Class ---------------- Mutant | -10/Materials Skirmisher | -9/Materials Tank | -9/Storage Commander-Tank | -9/Recycling Commander-Tank | -9/Scraptown Scavenger-Skirmisher | -6/Factory Scout | -6/Waste Scout | -6/Factory Scout | -6/DSF Scout | -5/Factory Sprinter | -5/Extension Gladiator | -4/Factory Scout | -3/Research Resources | -11 -10 -9 -9 -9 -9 -6 -6 -6 -6 -5 -5 -4 -3 ----------- Run | Yrd Mat Mat Sto Rec Scr Fac Was Fac DSF Fac Ext Fac Res Matter Collected 5758 | 385 782 959 754 133 20 1888 . . . 227 228 158 224 Remotely . | . . . . . . . . . . . . . . Salvage Created 10222 | 170 1160 1945 1610 785 . 2857 . . . 73 564 90 968 Parts 533 | 13 63 107 109 39 . 136 . . . 2 16 1 47 Haulers Intercepted 14 | . 2 6 6 . . . . . . . . . . Recyclers Shooed 17 | . 2 2 3 1 . 9 . . . . . . . Parts Field Recycled . | . . . . . . . . . . . . . . Retrieved Matter . | . . . . . . . . . . . . . . Parts Self-Destructed . | . . . . . . . . . . . . . . Prevented . | . . . . . . . . . . . . . . Kills | -11 -10 -9 -9 -9 -9 -6 -6 -6 -6 -5 -5 -4 -3 ------- Run | Yrd Mat Mat Sto Rec Scr Fac Was Fac DSF Fac Ext Fac Res Combat Hostiles Destroyed 109 | . 18 23 20 5 . 28 . . . 2 4 2 7 Melee 11 | . . . . . . . . . . 1 1 2 7 Guns 70 | . 18 22 17 1 . 12 . . . . . . . Cannons 19 | . . . . 4 . 15 . . . . . . . AOE 3 | . . . 3 . . . . . . . . . . Classes Destroyed 14 | 3 6 2 . . . 3 . . . . . . . Worker 36 | 2 8 9 6 . . 5 . . . 1 . 1 4 Builder 18 | . 1 3 1 . . 12 . . . . 1 . . Tunneler 3 | 3 . . . . . . . . . . . . . Hauler 14 | . 2 6 6 . . . . . . . . . . Recycler 35 | 1 2 5 4 6 . 12 . . . . 2 . 3 Mechanic 2 | . . 1 . . . 1 . . . . . . . Operator 6 | . 3 1 2 . . . . . . . . . . Watcher 19 | . 3 5 2 . . 5 . . . . 1 . 3 Swarmer 23 | . 3 7 4 . . 5 . . . 2 . . 2 Grunt 45 | . 15 10 8 . . 10 . . . . 2 . . Duelist 1 | . . . . . . 1 . . . . . . . Sentry 24 | . . 6 8 5 . 3 . . . . 2 . . Hunter 5 | . . . . . . 4 . . . . . . 1 Programmer 11 | . . . . . . 5 . . . . . 2 4 Best Kill Streak 11 | 3 11 7 4 4 . 11 . . . 2 3 1 10 Combat Bots Only 6 | . 6 5 4 2 . 3 . . . 2 3 1 3 Max Kills in Single Turn 2 | 1 2 2 2 1 . 2 . . . 1 1 1 1 Gunslinging 1 | . . 1 . . . . . . . . . . . Exploded 2 | . . . 2 . . . . . . . . . . Melee 1 | . . . . . . . . . . 1 1 1 1 Uniques/NPCs Destroyed . | . . . . . . . . . . . . . . Combat | -11 -10 -9 -9 -9 -9 -6 -6 -6 -6 -5 -5 -4 -3 -------- Run | Yrd Mat Mat Sto Rec Scr Fac Was Fac DSF Fac Ext Fac Res Hostile Shots Fired 1086 | . 102 112 63 9 . 394 1 2 26 45 49 58 225 Missed 336 | . 28 33 20 3 . 118 1 . 5 17 14 26 71 Hits 750 | . 74 79 43 6 . 276 . 2 21 28 35 32 154 Melee 13 | . . . . . . 5 . . 8 . . . . Projectile 737 | . 74 79 43 6 . 271 . 2 13 28 35 32 154 AOE 5 | . . . . . . 2 . . 2 . . 1 . Critical Strikes 35 | . 1 2 4 . . 9 . . 3 2 5 . 9 Actively Blocked 5 | . . . . . . . . . . . . . 5 Damage Taken 12772 | . 879 935 573 92 . 4486 . 26 462 468 765 629 3457 Core 3089 | . 214 147 90 15 . 603 . . 90 89 347 174 1320 Absorbed by Shields 179 | . . . . . . 97 . . 82 . . . . Regen/Repaired (Parts) 250 | . 66 57 92 . . . . . . . 35 . . Core Remaining (%) 51 | 100 14 . . . 37 . . . 18 . 56 84 . Volleys Fired 537 | 15 130 117 94 16 . 157 8 . . . . . . Largest 3 | 2 2 3 3 3 . 3 1 . . . . . . Hottest 175 | 70 70 102 114 114 . 175 28 . . . . . . Shots Fired 1361 | 30 255 333 260 48 . 426 7 1 1 . . . . Gun 1130 | 30 255 330 228 32 . 246 7 1 1 . . . . Cannon 228 | . . 2 30 16 . 180 . . . . . . . Launcher 3 | . . 1 2 . . . . . . . . . . Special . | . . . . . . . . . . . . . . Kinetic 920 | 15 129 225 182 32 . 328 7 1 1 . . . . Thermal 420 | 15 126 107 76 16 . 80 . . . . . . . Explosive 3 | . . 1 2 . . . . . . . . . . Electromagnetic 18 | . . . . . . 18 . . . . . . . Robot Hit Streak 24 | 4 9 17 18 11 . 24 3 . . . . . . Robot Miss Streak 6 | 2 3 4 4 1 . 6 3 1 . . . . . Penetration Max 1 | . . . . . . 1 . . . . . . . Secondary Targets 6 | . . 2 2 . . 2 . . . . . . . Max Gunslinging Chain 1 | . . 1 1 . . 1 . . . . . . . Shots Hit Robots 888 | 19 158 198 155 31 . 242 5 . . 6 21 14 39 Core Hits 363 | 7 63 74 63 14 . 114 2 . . . 8 1 17 Critical Kills 2 | . . . . . . 1 . . . . . . 1 Critical Parts Destroyed 11 | . . 2 . . . 1 . . . 3 2 2 1 Critical Strikes 62 | . 11 9 3 . . 23 . . . 3 3 2 8 Burn 30 | . 11 7 3 . . 9 . . . . . . . Meltdown 1 | . . . . . . 1 . . . . . . . Destroy 3 | . . 2 . . . 1 . . . . . . . Blast 12 | . . . . . . 12 . . . . . . . Smash 9 | . . . . . . . . . . 3 2 2 2 Sever 3 | . . . . . . . . . . . 1 . 2 Impale 4 | . . . . . . . . . . . . . 4 Melee Attacks 118 | . . . . . . 1 . . . 12 30 19 56 Impact 52 | . . . . . . 1 . . . 12 17 15 7 Slashing 49 | . . . . . . . . . . . 13 4 32 Piercing 17 | . . . . . . . . . . . . . 17 Sneak Attacks 14 | . . . . . . . . . . 1 4 1 8 Combat Hostiles 1 | . . . . . . . . . . . 1 . . Follow-up Attacks 11 | . . . . . . . . . . . 3 1 7 Damage Inflicted 18854 | 243 2017 3057 2689 570 . 5649 132 . . 383 1180 816 2118 Guns 10495 | 243 2017 3009 2254 269 . 2571 132 . . . . . . Cannons 3539 | . . . 295 301 . 2943 . . . . . . . Explosions 271 | . . 48 140 . . 83 . . . . . . . Melee 4532 | . . . . . . 47 . . . 383 1180 816 2106 Ramming 17 | . . . . . . 5 . . . . . . 12 Kinetic 9549 | 129 925 2077 1724 269 . 4293 132 . . . . . . Thermal 4321 | 114 1092 932 825 301 . 1057 . . . . . . . Explosive 271 | . . 48 140 . . 83 . . . . . . . Electromagnetic 164 | . . . . . . 164 . . . . . . . Impact 1997 | . . . . . . 47 . . . 383 680 675 212 Slashing 2072 | . . . . . . . . . . . 500 141 1431 Piercing 463 | . . . . . . . . . . . . . 463 Highest Corruption 18 | . . . . . . 6 14 14 18 6 7 6 8 Average Corruption 4 | . . . . . . 2 12 14 15 5 7 5 4 Corruption Purged . | . . . . . . . . . . . . . . Corruption Blocked . | . . . . . . . . . . . . . . Effects 93 | . . . . . . 36 7 3 4 4 23 9 7 Message Errors 16 | . . . . . . 4 1 1 1 1 3 2 3 Matter Fused 19 | . . . . . . 11 . 1 . . 5 2 . Heat Flow Errors 10 | . . . . . . 1 . . . . 4 3 2 Energy Discharges 13 | . . . . . . 6 2 . . 1 3 . 1 Parts Rejected 2 | . . . . . . 1 1 . . . . . . Data Loss (minor) 16 | . . . . . . 6 . . . 1 7 2 . Data Loss (major) 3 | . . . . . . 1 . . 1 1 . . . Misfires 5 | . . . . . . 3 . 1 1 . . . . Alerts 4 | . . . . . . 2 . . . . 1 . 1 Misdirections 3 | . . . . . . . 2 . 1 . . . . Weapon Failures 2 | . . . . . . 1 1 . . . . . . Overload Shots . | . . . . . . . . . . . . . . Overflow Damage 1373 | . . . 16 . . 172 . . . 278 318 225 364 Projectiles 125 | . . . 15 . . 110 . . . . . . . Explosions 51 | . . . 1 . . 50 . . . . . . . Melee 1197 | . . . . . . 12 . . . 278 318 225 364 Knockbacks 33 | . . . . . . 21 . . . 2 2 6 2 Impact 12 | . . . . . . . . . . 2 2 6 2 Kinetic 21 | . . . . . . 21 . . . . . . . Secondary . | . . . . . . . . . . . . . . Self-Inflicted Damage 205 | . . . 21 . . 178 . . . . . . 6 Shots 3 | . . . 1 . . 2 . . . . . . . Rammed 3 | . . . . . . 1 . . . . . . 2 Targets Rammed 3 | . . . . . . 1 . . . . . . 2 Kicked . | . . . . . . . . . . . . . . Crushed . | . . . . . . . . . . . . . . Highest Temperature 390 | 72 325 390 312 228 . 267 60 . . . 232 331 264 Average Temperature 82 | 27 86 86 85 73 . 67 22 . . . 117 111 58 Received Heat Transfer 2045 | . 495 345 261 27 . 408 . . 36 . 243 48 182 Effects 3 | . 1 1 1 . . . . . . . . . . Energy Bleed 2 | . 1 . 1 . . . . . . . . . . Short Circuit 1 | . . 1 . . . . . . . . . . . Siege Activations . | . . . . . . . . . . . . . . Martial Activations . | . . . . . . . . . . . . . . Shielding Activations . | . . . . . . . . . . . . . . Robots Disrupted . | . . . . . . . . . . . . . . Combat Hostiles . | . . . . . . . . . . . . . . Robots Corrupted 6 | . . . . . . 1 . . . 1 3 . 1 Combat Hostiles 4 | . . . . . . . . . . 1 3 . . Parts Fried 7 | . . . . . . 2 . . . 2 3 . . Impact Corruptions 25 | . . . . . . 1 . . . 7 5 9 3 Robots Melted 2 | . . 1 . . . 1 . . . . . . . Combat Hostiles 2 | . . 1 . . . 1 . . . . . . . Parts Melted 21 | . 9 1 2 . . 9 . . . . . . . Heat Transferred 13199 | 333 4033 2960 2035 518 . 3320 . . . . . . . Parts Sabotaged . | . . . . . . . . . . . . . . Parts Stolen . | . . . . . . . . . . . . . . Parts Stripped . | . . . . . . . . . . . . . . Power Chain Reactions . | . . . . . . . . . . . . . . Alert | -11 -10 -9 -9 -9 -9 -6 -6 -6 -6 -5 -5 -4 -3 ------- Run | Yrd Mat Mat Sto Rec Scr Fac Was Fac DSF Fac Ext Fac Res Maximum Alert Level 2 | . 1 1 1 . . 2 . . . . . . . Low Security (%) 73 | 100 97 42 51 100 . 62 100 100 100 100 100 100 100 Level 1 21 | . 2 57 48 . . 12 . . . . . . . Level 2 5 | . . . . . . 24 . . . . . . . Level 3 . | . . . . . . . . . . . . . . Level 4 . | . . . . . . . . . . . . . . Level 5 . | . . . . . . . . . . . . . . High Security . | . . . . . . . . . . . . . . Max Security . | . . . . . . . . . . . . . . Peak Influence 490 | 15 208 349 331 127 . 490 165 119 77 35 67 75 130 Initial 165 | . 3 63 92 97 . . 165 94 62 29 . 28 33 Average 122 | 2 116 178 218 28 . 165 152 100 64 10 10 15 36 Influence Increases 4822 | 30 568 948 763 166 . 1247 . 25 15 74 360 224 402 Destroy 0b10 Robot/C 2280 | . 360 460 400 100 . 600 . . . 40 140 40 140 Destroy 0b10 Robot/NC 665 | 30 95 150 105 30 . 175 . . . 5 20 5 50 Destroy Leader 566 | . 90 152 136 . . 140 . . . . 12 10 26 Allied During Kill 18 | . . . . 3 . 1 . . . . 14 . . Successful Hack 220 | . 18 39 33 16 . 53 . 25 . 14 22 . . Disable Machine 240 | . . 45 45 15 . 90 . . . . 45 . . Destroy Structure 143 | . 5 12 14 2 . 98 . . . . 2 4 6 Partial Spotted 45 | . . . . . . . . . . 15 15 . 15 Lose Combat Pursuer 645 | . . 90 30 . . 90 . . 15 . 90 165 165 Influence Decreases 4788 | 25 422 880 730 412 6 773 339 71 47 131 301 220 431 Entered New Map 844 | . 2 88 127 155 6 . 309 41 27 28 . 31 30 Time Decay 3014 | 25 390 602 583 257 . 389 30 30 . 103 193 177 235 Lost Part 532 | . 30 30 . . . 234 . . 20 . 40 12 166 Lost Ally 248 | . . 10 20 . . 150 . . . . 68 . . Purge Threat 150 | . . 150 . . . . . . . . . . . Squads Dispatched 32 | . 4 2 3 . . 11 . . 1 2 1 4 4 Investigation 5 | . 1 1 . . . 1 . . . 1 1 . . Extermination 10 | . . . . . . 4 . . . 1 . 2 3 Reinforcement 16 | . 3 1 3 . . 5 . . 1 . . 2 1 Assault 1 | . . . . . . 1 . . . . . . . Garrison . | . . . . . . . . . . . . . . Intercept . | . . . . . . . . . . . . . . Searches Triggered . | . . . . . . . . . . . . . . Construction Impeded 5 | . . . 1 . . 4 . . . . . . . Haulers Reinforced . | . . . . . . . . . . . . . . Active Scanning Responses . | . . . . . . . . . . . . . . Cargo Convoy Interrupts . | . . . . . . . . . . . . . . Stealth | -11 -10 -9 -9 -9 -9 -6 -6 -6 -6 -5 -5 -4 -3 --------- Run | Yrd Mat Mat Sto Rec Scr Fac Was Fac DSF Fac Ext Fac Res Distress Signals 12 | . 3 1 2 . . 2 . . . . . 2 2 Communications Jammed . | . . . . . . . . . . . . . . Distress Signals . | . . . . . . . . . . . . . . Times Spotted 238 | . 32 36 23 5 . 46 6 1 8 6 15 23 37 Peak Tracking Total 19 | . 6 6 6 2 . 6 6 4 7 4 5 9 19 Tactical Retreats 25 | . . 3 2 . . 5 . . 1 . 3 4 7 Traps | -11 -10 -9 -9 -9 -9 -6 -6 -6 -6 -5 -5 -4 -3 ------- Run | Yrd Mat Mat Sto Rec Scr Fac Was Fac DSF Fac Ext Fac Res Traps Triggered 19 | . 5 1 . . . 4 . . 2 2 1 . 4 Indirectly . | . . . . . . . . . . . . . . Trap Hack Attempts 38 | . . . 38 . . . . . . . . . . Triggered . | . . . . . . . . . . . . . . Disarmed . | . . . . . . . . . . . . . . Reprogrammed 6 | . . . 6 . . . . . . . . . . Reused . | . . . . . . . . . . . . . . Traps Extracted . | . . . . . . . . . . . . . . Installed . | . . . . . . . . . . . . . . Triggered . | . . . . . . . . . . . . . . Machines | -11 -10 -9 -9 -9 -9 -6 -6 -6 -6 -5 -5 -4 -3 ---------- Run | Yrd Mat Mat Sto Rec Scr Fac Was Fac DSF Fac Ext Fac Res Machines Disabled 16 | . . 3 3 1 . 6 . . . . 3 . . Max in Single Turn 2 | . . 1 1 1 . 2 . . . . 1 . . Garrison Access 3 | . . . 1 . . 2 . . . . . . . Machines Repaired . | . . . . . . . . . . . . . . Machines Dismantled . | . . . . . . . . . . . . . . Machines Sabotaged . | . . . . . . . . . . . . . . Overloaded Fab Kills . | . . . . . . . . . . . . . . Hacking | -11 -10 -9 -9 -9 -9 -6 -6 -6 -6 -5 -5 -4 -3 --------- Run | Yrd Mat Mat Sto Rec Scr Fac Was Fac DSF Fac Ext Fac Res Machines Accessed 83 | . 8 12 14 11 7 11 . 2 . 6 6 2 4 Terminals 40 | . 5 8 9 6 . 1 . 1 . 2 4 1 3 Fabricators 3 | . . . . . . 3 . . . . . . . Repair Stations 9 | . 1 2 2 . . . . 1 . 1 1 1 . Recycling Units 16 | . 2 2 2 5 . 3 . . . 1 1 . . Scanalyzers 2 | . . . . . . 1 . . . . . . 1 Garrison Access 6 | . . . 1 . . 3 . . . 2 . . . Total Hacks 257 | . 25 49 31 40 26 28 . 4 . 13 27 6 8 Successful 149 | . 14 26 20 25 26 18 . 2 . 5 10 1 2 Failed 108 | . 11 23 11 15 . 10 . 2 . 8 17 5 6 Catastrophic 12 | . 1 2 2 . . 1 . . . 2 2 1 1 Database Lockouts . | . . . . . . . . . . . . . . Manual 116 | . 14 27 17 28 . 9 . . . 7 8 1 5 Terminals 127 | . 12 34 18 25 . 2 . 2 . 6 18 5 5 Fabricators 7 | . . . . . . 7 . . . . . . . Repair Stations 26 | . 5 7 4 . . . . 2 . 1 6 1 . Recycling Units 48 | . 8 8 6 15 . 6 . . . 2 3 . . Scanalyzers 11 | . . . . . . 8 . . . . . . 3 Garrison Access 12 | . . . 3 . . 5 . . . 4 . . . Terminal Hacks 58 | . 4 9 6 6 26 . . 1 . 1 4 1 . Record 22 | . 1 . 1 . 20 . . . . . . . . Part Schematic 1 | . . . . 1 . . . . . . . . . Robot Analysis 16 | . 3 3 . 4 6 . . . . . . . . Prototype ID Bank 2 | . . 2 . . . . . . . . . . . Open Door 6 | . . . 4 . . . . . . 1 1 . . Open DSF 1 | . . . . . . . . 1 . . . . . Branch Access Points 3 | . . 1 . . . . . . . . 1 1 . Terminal Index 1 | . . 1 . . . . . . . . . . . Alert Level 2 | . . 1 . 1 . . . . . . . . . Unreport Threat 1 | . . 1 . . . . . . . . . . . Locate Traps 2 | . . . 1 . . . . . . . 1 . . Investigation Status 1 | . . . . . . . . . . . 1 . . Fabricator Hacks 1 | . . . . . . 1 . . . . . . . Network Status 1 | . . . . . . 1 . . . . . . . Repair Station Hacks 16 | . 4 4 4 . . . . 1 . . 3 . . Scan Component 10 | . 2 3 2 . . . . 1 . . 2 . . Repair 6 | . 2 1 2 . . . . . . . 1 . . Recycling Unit Hacks 22 | . 2 4 3 8 . 3 . . . 1 1 . . Report Inventory 15 | . 2 2 2 5 . 2 . . . 1 1 . . Retrieve Components 7 | . . 2 1 3 . 1 . . . . . . . Scanalyzer 8 | . . . . . . 7 . . . . . . 1 Insert Component 3 | . . . . . . 2 . . . . . . 1 Analyze 5 | . . . . . . 5 . . . . . . . Garrison Access Hacks 3 | . . . 1 . . 2 . . . . . . . Seal Access 3 | . . . 1 . . 2 . . . . . . . Unauthorized Hacks 41 | . 4 9 6 11 . 5 . . . 3 2 . 1 Terminals 23 | . 2 7 3 6 . 1 . . . 2 1 . 1 Assimilate 3 | . . 1 . . . . . . . 1 . . 1 Botnet 19 | . 2 5 3 6 . 1 . . . 1 1 . . Operators 1 | . . 1 . . . . . . . . . . . Fabricators 2 | . . . . . . 2 . . . . . . . Liberate 2 | . . . . . . 2 . . . . . . . Repair Stations . | . . . . . . . . . . . . . . Recycling Units 16 | . 2 2 3 5 . 2 . . . 1 1 . . Reject 15 | . 2 2 2 5 . 2 . . . 1 1 . . Mask 1 | . . . 1 . . . . . . . . . . Scanalyzers . | . . . . . . . . . . . . . . Garrison Access . | . . . . . . . . . . . . . . Data Cores Recovered . | . . . . . . . . . . . . . . Used . | . . . . . . . . . . . . . . Hacking Detections 60 | . 8 11 6 8 . 8 . 2 . 5 6 2 4 Full Trace Events 2 | . . . . . . . . . . 1 1 . . Feedback Events . | . . . . . . . . . . . . . . Feedback Blocked . | . . . . . . . . . . . . . . Robot Schematics Acquired . | . . . . . . . . . . . . . . Robots Built . | . . . . . . . . . . . . . . Authchips . | . . . . . . . . . . . . . . Time . | . . . . . . . . . . . . . . Total Robot Build Rating . | . . . . . . . . . . . . . . Part Schematics Acquired 3 | . . . . 1 . 2 . . . . . . . Parts Built . | . . . . . . . . . . . . . . Authchips . | . . . . . . . . . . . . . . Time . | . . . . . . . . . . . . . . Total Part Build Rating . | . . . . . . . . . . . . . . Parts Repaired 6 | . 2 1 2 . . . . . . . 1 . . Time 229 | . 52 26 51 . . . . . . . 100 . . Parts Recycled . | . . . . . . . . . . . . . . Recycled Matter . | . . . . . . . . . . . . . . Retrieved Matter . | . . . . . . . . . . . . . . Retrieved Components 40 | . . 15 9 14 . 2 . . . . . . . Parts Scanalyzed 3 | . . . . . . 2 . . . . . . 1 Part Schematics Acquired 2 | . . . . . . 2 . . . . . . . Parts Damaged 2 | . . . . . . 1 . . . . . . 1 Bothacking | -11 -10 -9 -9 -9 -9 -6 -6 -6 -6 -5 -5 -4 -3 ------------ Run | Yrd Mat Mat Sto Rec Scr Fac Was Fac DSF Fac Ext Fac Res Used RIF Installer . | . . . . . . . . . . . . . . Robots Hacked . | . . . . . . . . . . . . . . Non-combat . | . . . . . . . . . . . . . . Combat . | . . . . . . . . . . . . . . Robot Hacks Applied . | . . . . . . . . . . . . . . Relay Couplers Released . | . . . . . . . . . . . . . . Fabnet Peak Effective % . | . . . . . . . . . . . . . . Robots Rewired 13 | . . . . 10 . . . . . . 3 . . Allies Hacked . | . . . . . . . . . . . . . . Hacks Repelled . | . . . . . . . . . . . . . . Allies | -11 -10 -9 -9 -9 -9 -6 -6 -6 -6 -5 -5 -4 -3 -------- Run | Yrd Mat Mat Sto Rec Scr Fac Was Fac DSF Fac Ext Fac Res Total Allies 22 | . . 1 . 10 . 5 . . . . 5 . 1 Largest Group 10 | . . 1 . 10 8 8 . . . . 4 . . Highest-Rated Group 107 | . . 10 . 107 87 100 . . . . 107 . . Highest-Rated Ally 32 | . . 10 . 27 27 32 . . . . 31 . . Total Orders 10 | . . . 4 . . 6 . . . . . . . TUNNEL 3 | . . . . . . 3 . . . . . . . EXPLORE 4 | . . . 4 . . . . . . . . . . RETURN 3 | . . . . . . 3 . . . . . . . Ally Attacks 43 | . . . . . . 18 . . . . 25 . . Total Damage 905 | . . . . . . 354 . . . . 551 . . Kills 5 | . . . . . . 2 . . . . 3 . . Allies Corrupted . | . . . . . . . . . . . . . . Allies Melted . | . . . . . . . . . . . . . . Intel | -11 -10 -9 -9 -9 -9 -6 -6 -6 -6 -5 -5 -4 -3 ------- Run | Yrd Mat Mat Sto Rec Scr Fac Was Fac DSF Fac Ext Fac Res Active Infowar (turns) 8955 | 43 479 2115 655 . . 2496 67 77 53 303 742 854 1071 Optics 2965 | . . . . . . . . . . 298 742 854 1071 Sensors 6838 | . 377 2115 655 . . 2487 26 77 53 303 155 . 590 IFF 151 | . . . . . . . . . . . . 151 . Structural 759 | . . . . . . 116 63 70 53 303 154 . . Seismic 145 | 43 102 . . . . . . . . . . . . Robot Analysis Total 16 | . 3 3 . 4 6 . . . . . . . . Derelict Logs Recovered . | . . . . . . . . . . . . . . Drone Launches 15 | . . . 12 . . 3 . . . . . . . Drone Recoveries 5 | . . . 2 . . 3 . . . . . . . Exploration | -11 -10 -9 -9 -9 -9 -6 -6 -6 -6 -5 -5 -4 -3 ------------- Run | Yrd Mat Mat Sto Rec Scr Fac Was Fac DSF Fac Ext Fac Res Turns Passed 14203 | 138 1391 2358 1812 931 1810 2594 67 79 53 303 742 854 1071 Spaces Moved 11213 | 77 786 1441 918 706 1543 1773 142 193 120 559 765 953 1237 Core 64 | 8 11 . . . . . . . . . . . 45 Treads 1 | . . 1 . . . . . . . . . . . Legs . | . . . . . . . . . . . . . . Wheels 7146 | 69 775 1440 918 706 1543 1323 . . . . 64 308 . Hover 1837 | . . . . . . . . . . . . 645 1192 Flight 2165 | . . . . . . 450 142 193 120 559 701 . . Fastest Speed 14 | 50 95 115 125 100 100 26 14 26 14 29 23 50 45 Average Speed 89 | 94 109 126 133 101 113 100 24 26 24 29 35 67 49 Slowest Speed 675 | 100 500 240 140 140 115 675 26 26 26 109 112 100 100 Overloaded Moves 120 | . . . . . . . 26 . 22 . 72 . . Propulsion Burnouts . | . . . . . . . . . . . . . . Robots Hopped 16 | . . . . . . 4 . . 3 7 2 . . Potential Cave-ins 1 | . . . . . . . . . . . . 1 . Cave-ins Triggered . | . . . . . . . . . . . . . . Exploration Rate (%) 56 | 5 98 78 98 96 91 30 76 3 87 13 68 26 19 Regions Visited 13 Branch Regions 4 Pre-discovered Areas 1 | . . . 1 . . . . . . . . . . Known Exits Taken 5 | . . 1 . . . . . 1 . 1 1 1 . Unknown Exits Taken 5 | 1 1 . 1 1 1 . . . . . . . . Scrap Searched 7 | . . . . . 7 . . . . . . . . Spaces Dug 6 | . . . . . . . . . . . 1 2 3 Terrain Destroyed 105 | . . 8 9 . . 82 . . . . 1 2 3 Melee 6 | . . . . . . . . . . . 1 2 3 Projectile 32 | . . 1 . . . 31 . . . . . . . AOE 67 | . . 7 9 . . 51 . . . . . . . Terrain Rammed . | . . . . . . . . . . . . . . Walls Destroyed . | . . . . . . . . . . . . . . Machines Disabled . | . . . . . . . . . . . . . . Actions | -11 -10 -9 -9 -9 -9 -6 -6 -6 -6 -5 -5 -4 -3 --------- Run | Yrd Mat Mat Sto Rec Scr Fac Was Fac DSF Fac Ext Fac Res Total 14095 | 108 1063 1733 1303 884 1600 2264 164 223 138 669 1187 1135 1624 Wait 1497 | . 94 100 203 21 42 179 10 21 7 68 338 122 292 Move 11168 | 76 785 1440 917 705 1542 1765 141 192 113 544 760 951 1237 Hop 16 | . . . . . . 4 . . 3 7 2 . . Pick Up 106 | 9 18 17 5 . 7 32 1 1 . 2 1 5 8 Fast Attach 109 | 7 12 4 7 . 1 28 1 3 2 5 10 18 11 Attach 57 | . 3 5 1 . 1 33 . . . 3 2 1 8 Detach 30 | . . 1 1 . 1 13 . . . 2 2 5 5 Swap 63 | . 6 20 14 . 1 8 2 1 1 3 1 3 3 Drop 154 | 1 15 29 17 . 5 43 1 5 1 5 5 13 14 Fire 537 | 15 130 117 94 16 . 157 8 . . . . . . Melee 98 | . . . . . . 1 . . . 12 25 16 44 Ram 3 | . . . . . . 1 . . . . . . 2 Kick . | . . . . . . . . . . . . . . Crush . | . . . . . . . . . . . . . . Escape Stasis 48 | . . . . . . . . . 11 18 18 1 . Rewire 166 | . . . 1 142 . . . . . . 23 . . Trap 38 | . . . 38 . . . . . . . . . . Miscellaneous 5 | . . . 5 . . . . . . . . . . Route ------- -11/Scrapyard -10/Materials (discovered 4 exits: *Mat x3 / [*Min]) -9/Materials (discovered 6 exits: [*Mat x2] / *Min x2 / *Sto x2) -9/Storage (discovered 2 exits: [*Mat] / *Rec) -9/Recycling (discovered 2 exits: [*Fac] / *Scr) -9/Scraptown (discovered 2 exits: *Fac x2) -6/Factory (discovered 2 exits: *Low x2) -6/Waste -6/Factory -6/DSF -5/Factory -5/Extension (discovered 2 exits: *Fac / *Cet) -4/Factory (discovered 4 exits: *Res / Upp x2 / Arm) -3/Research History --------- Turn | Location | Event 4 | -11/Scrapyard | Discovered new exit (range 16) 139 | -11/Scrapyard | Entered Materials 311 | -10/Materials | Build established: Mutant 369 | -10/Materials | Discovered new exit (range 8) 877 | -10/Materials | Discovered new exit (range 14) 888 | -10/Materials | Core integrity fell below 50% 1061 | -10/Materials | Repaired Med. Laser 1089 | -10/Materials | Repaired Sensor Array 1255 | -10/Materials | Discovered new exit (range 16) 1294 | -10/Materials | Core integrity fell below 20% 1352 | -10/Materials | Discovered new exit (range 14) 1530 | -10/Materials | Entered another Materials area 1530 | -9/Materials | Evolved 2 slots: Utility x1, Weapon x1 1975 | -9/Materials | Repaired Med. Laser 2099 | -9/Materials | Discovered new exit (range 12) 2119 | -9/Materials | Discovered new exit (range 12) 2262 | -9/Materials | Build established: Skirmisher 2373 | -9/Materials | Discovered new exit (range 15) 2473 | -9/Materials | Identified exit to Mines 2473 | -9/Materials | Identified exit to Storage 2636 | -9/Materials | Discovered new exit (range 7) 3168 | -9/Materials | Discovered new exit (range 16) 3888 | -9/Materials | Entered Storage 4121 | -9/Storage | Repaired Hvy. Ion Engine 4133 | -9/Storage | Learned location of Armory (-4) 4612 | -9/Storage | Core integrity fell below 50% 4664 | -9/Storage | Discovered new exit (range 8) 4769 | -9/Storage | Repaired Sensor Array 5198 | -9/Storage | Build established: Tank 5683 | -9/Storage | Used back door to open Recycling access 5683 | -9/Storage | Discovered new exit (range 4) 5700 | -9/Storage | Entered Recycling 5953 | -9/Recycling | Discovered new exit (range 16) 6365 | -9/Recycling | Build established: Commander-Tank 6474 | -9/Recycling | Scanned before Scraplab entrance 6599 | -9/Recycling | Entered Scraplab 6613 | -9/Recycling | Discovered new exit (range 2) 6631 | -9/Recycling | Entered Scraptown 6631 | -9/Scraptown | Accompanied by 8 allies 6872 | -9/Scraptown | Heard Great Nut preacher, LISTEN AND RECITE! 6945 | -9/Scraptown | Discovered new exit (range 7) 7007 | -9/Scraptown | Visited Bundlers 7098 | -9/Scraptown | Visited Shadow of the Wyrm 7118 | -9/Scraptown | Visited Cyclists 7398 | -9/Scraptown | Visited Junk Repository 7435 | -9/Scraptown | Visited The Evicted 7482 | -9/Scraptown | Visited Comm Corps 7538 | -9/Scraptown | Visited Awakened 7606 | -9/Scraptown | Visited UFD Registry 7606 | -9/Scraptown | Registered with UFD as "Datahacker" 7637 | -9/Scraptown | Visited Junk Cannon Lab 7675 | -9/Scraptown | Visited Curators Association 7719 | -9/Scraptown | Visited Scrap Suit Storage 7874 | -9/Scraptown | Visited Analyses Database 7899 | -9/Scraptown | Visited Supply Room 7929 | -9/Scraptown | Visited Junk Repository 7969 | -9/Scraptown | Visited Modified Component R&D 8036 | -9/Scraptown | Visited Supply Room 8083 | -9/Scraptown | Visited Research Penetration Think Tank 8113 | -9/Scraptown | Visited Cartography Club 8293 | -9/Scraptown | Found Scrap Suit 8344 | -9/Scraptown | Met Optimus 8344 | -9/Scraptown | Accepted into 0bPrime 8427 | -9/Scraptown | Discovered new exit (range 3) 8441 | -9/Scraptown | Entered Factory 8441 | -6/Factory | Accompanied by 8 allies 8441 | -6/Factory | Evolved 6 slots: Propulsion x2, Utility x4 8494 | -6/Factory | Discovered new exit (range 21) 8581 | -6/Factory | Identified exit to Lower Caves 8777 | -6/Factory | Build established: Commander-Skirmisher 9189 | -6/Factory | Lost 3 allies 9214 | -6/Factory | Lost 9 parts (5n2u2w) 9748 | -6/Factory | Build established: Hacker-Skirmisher 9947 | -6/Factory | Lost 10 parts (1p3n2u4w) 9969 | -6/Factory | Core integrity fell below 50% 10039 | -6/Factory | Lost 4 parts (1p1n1u1w) 10419 | -6/Factory | Discovered exit to Lower Caves (range 16) 10449 | -6/Factory | Build established: Scavenger-Skirmisher 10891 | -6/Factory | First assault squad dispatched 11035 | -6/Factory | Sucked down chute 11035 | -6/Factory | Entered Waste 11042 | -6/Waste | Spotted C-40 Crusher 11044 | -6/Waste | Spotted C-40 Crusher 11048 | -6/Waste | Spotted C-40 Crusher 11050 | -6/Waste | EMP discharged 11050 | -6/Waste | System corruption reached 10% 11074 | -6/Waste | Spotted C-40 Crusher 11076 | -6/Waste | Spotted C-40 Crusher 11076 | -6/Waste | Spotted C-40 Crusher 11094 | -6/Waste | Discovered new exit (range 16) 11101 | -6/Waste | Identified exit to Factory 11102 | -6/Waste | Entered Factory 11108 | -6/Factory | Identified exit to DSF 11144 | -6/Factory | Build established: Scout 11181 | -6/Factory | Entered DSF 11207 | -6/DSF | Additional patrols routed to DSF 11215 | -6/DSF | Discovered new exit (range 16) 11225 | -6/DSF | Core integrity fell below 20% 11233 | -6/DSF | Identified exit to Factory 11234 | -6/DSF | Entered Factory 11234 | -5/Factory | Evolved 2 slots: Propulsion x1, Utility x1 11428 | -5/Factory | Discovered new exit (range 6) 11429 | -5/Factory | Identified exit to Extension 11537 | -5/Factory | Entered Extension 11542 | -5/Extension | Disrupted transfer network 11664 | -5/Extension | Repaired Broken Cld. Cesium-ion Thruster 11770 | -5/Extension | Rescued a captive Derelict 11771 | -5/Extension | Rescued a captive Derelict 11836 | -5/Extension | Lost 4 parts (2n2u) 11922 | -5/Extension | Identified exit to Cetus 12082 | -5/Extension | Spotted B-75 Beast 12175 | -5/Extension | Spotted B-75 Beast 12216 | -5/Extension | Lost 3 parts (2n1u) 12255 | -5/Extension | Discovered new exit (range 20) 12278 | -5/Extension | Identified exit to Factory 12279 | -5/Extension | Entered Factory 12279 | -4/Factory | Evolved 2 slots: Propulsion x2 12486 | -4/Factory | Build established: Scavenger-Gladiator 12813 | -4/Factory | Identified exit to Upper Caves 12813 | -4/Factory | Identified exit to Armory 12941 | -4/Factory | Build established: Gladiator 13108 | -4/Factory | Spotted B-86 Titan 13119 | -4/Factory | Discovered new exit (range 10) 13132 | -4/Factory | Identified exit to Research 13133 | -4/Factory | Entered Research 13133 | -3/Research | Evolved 2 slots: Utility x2 13450 | -3/Research | Build established: Scout 13542 | -3/Research | Allied Derelicts emerged from ambush trap array 13654 | -3/Research | Spotted B-86 Titan 14018 | -3/Research | Build established: Hacker-Gladiator 14181 | -3/Research | Core integrity fell below 50% 14200 | -3/Research | Core integrity fell below 20% 14204 | -3/Research | Destroyed by G-67 Veteran with Plasma Rifle Last Messages --------------- 14184_ S-43 Plague suffers critical hit (Impale). 14184_ Destroyed Xenon Bombardment Thruster. 14187_ Destroyed Lgt. Antimatter Reactor. 14191_ Imp. Gyrokinetic Inverter destroyed. 14191_ S-43 Plague suffers critical hit (Impale). 14191_ S-43 Plague destroyed. 14193_ Lance destroyed. 14193_ Adv. Signal Interpreter destroyed. 14194_ P-80 Master suffers critical hit (Impale). 14194_ P-80 Master destroyed. 14196_ S-43 Plague destroyed. 14198_ Acquired 10 matter. 14199_ S-43 Plague destroyed. 14199_ Lance destroyed. 14200_ Imp. Melee Analysis Suite destroyed. 14201_ Slammed into S-43 Plague. 14203_ Imp. Gyrokinetic Inverter destroyed. Map ----- +----------------------------------------------------+ | ?????????????????????????????????????????????????? | | ?????????????????????????????????????????????????? | | ?????????????????????????????????????????????????? | | ?????????????????????????????????????????????????? | | ?????????????????????????????????????????????????? | | ?????????????????????????????????????????????????? | | ?????????????????????????????????????????????????? | | ?????????????????????????????????????????????????? | | ?????????????????????????????????????????????????? | | ?????????????????????????????????????????????????? | | ?????????????????????????????????????????????????? | | ????????????????????????????????? ??????????????? | | ??????????????????????????????????? ????????????? | | ????????????????????????????????????# ???????????? | | ????????????????????????????????????# ?????####+ | | ??????????????????????????????????????! ##### | | ???????????????????????????????????????? | | ?????????????????????????????????????????? | | ???????????????????????????????????????????? | | ???????????##+####?????###########???????????# | | ???????????# ????# ! #???????????# | | ????????????? ??# #????######## | | ???????????????? ?# #????# | | ?????????????????? = # """"" #????# | | ????????????????????? + """"" #????# | | ???????????????????????#s@""""" #????# | | ???????????????????????# s%=%=s #????# | | ???????????????????????# sssgs #????# ####+# | | ???????????????????????#####g########## # | | ??????????????? ##### !pgg # | | ????????????? !%= / | | ????????? [ ^ # | | ???????? # """ | | ???????? """" """" " "" " # ""F | | ????????? ????"""" """" """" "" # "" | | ???????????????""" """" """" = Y" # """ | | ???????????????""" """" """" "" # """ | | ????????????????"" """" """" "" # | | ???????????????? = + | | ???????????????? ??? ###### | | ??????????????????? #????? | | ???????????????????##+####"" ""####+#########????? | | ?????????????????????????#""F""??????????????????? | | ?????????????????????????# """ ??????????????????? | | ?????????????????????????######??????????????????? | | ?????????????????????????????????????????????????? | | ?????????????????????????????????????????????????? | | ?????????????????????????????????????????????????? | | ?????????????????????????????????????????????????? | | ?????????????????????????????????????????????????? | +----------------------------------------------------+ Best States ------------- Heat Dissipation 65 Energy Generation 23 Energy Capacity 500 Matter Stores 300 Matter Capacity 450 Sight Range 23 Robot Scan Range 16 Terrain Scan Density 10 Power Amplification 20 Armor Coverage 150 Evasion (%) 67 Targeting Accuracy 5 Melee Accuracy 11 Target Analysis 5 Matter Filtering 30 Energy Filtering 30 Offensive Hacking 12 Defensive Hacking 10 Item Schematics ----------------- Arm. Wheel | -9/Recycling | Hacked Mapping Drone Bay | -6/Factory | Scanalyzed Mni. Grenade Launcher | -6/Factory | Scanalyzed Robot Schematics ------------------ None Fabricated ------------ Nothing Repaired ---------- Med. Laser | 20% | -10/Materials Sensor Array | 50% | -10/Materials Med. Laser | 18% | -9/Materials Hvy. Ion Engine | 31% | -9/Storage Sensor Array | 15% | -9/Storage Cld. Cesium-ion Thruster | 22% | -5/Extension | Broken Alien Tech Used ----------------- None Achievements -------------- Whoosh! Challenges ------------ None Game ------ Seed ConstructTerrorStripper Manual? 0 Play Time 02:18:51 Cumulative 348.3 hours Start 2025.08.25 @ 15:39:03 End 2025.08.25 @ 19:34:43 Sessions 1 Manual Loads 0 Difficulty Rogue Special Mode None Game No. 295 Rogue 295 Adventurer 0 Explorer 0 Win Type - Total 2 Types 2/0/0/0/0/0/0/0/0/0 Lore% 76 Gallery% 68 Achievement% 53 Wizard Run 0 Options --------- Layout 2 ASCII 1 Keyboard 1 Movement Numpad Keybinds 0 Fullscreen 2 Font 32/TamsynBold Map View 50x44 Zoom Use 0% Tactical HUD 1 Map Filters NONE Filters NONE Steam 1 RUN: 6941cf22-d950-4c1c-ac3e-23476a6ed213